bitfinex-derivatives/quotes_BTCF0:USTF0_20251002
["timestamp","ask_amount","ask_price","bid_price","bid_amount"]
[1759388491078,1.3624834,118650.0,118640.0,0.01699673]
[1759388491885,1.3624834,118650.0,118640.0,0.04017673]
[1759388492284,1.3624834,118650.0,118640.0,0.01699673]
[1759388495787,0.6018834,118650.0,118640.0,0.01699673]
[1759388495989,1.3624434,118650.0,118640.0,0.01699673]
[1759388498790,0.6018834,118650.0,118640.0,0.01699673]
[1759388498992,1.3624034,118650.0,118640.0,0.01699673]
[1759388499187,0.0842361,118650.0,118640.0,0.01699673]
[1759388499382,1.3611634,118650.0,118640.0,0.01699673]
[1759388499695,0.8435161,118650.0,118640.0,0.01699673]
[1759388499884,1.3611634,118650.0,118640.0,0.01699673]
[1759388500286,0.8435161,118650.0,118640.0,0.01699673]
[1759388500482,0.6018834,118650.0,118640.0,0.04017673]
[1759388500687,1.3623634,118650.0,118640.0,0.04017673]
[1759388500991,0.6018834,118650.0,118640.0,0.04017673]
[1759388501191,1.3623634,118650.0,118640.0,0.04017673]
[1759388501593,1.3623634,118650.0,118640.0,0.01699673]
[1759388502694,1.3623634,118650.0,118640.0,0.04017673]
[1759388502895,0.8447161,118650.0,118640.0,0.04017673]
[1759388503097,1.3623634,118650.0,118640.0,0.04017673]
[1759388504296,1.3623634,118650.0,118640.0,0.01699673]
[1759388505999,1.3623634,118650.0,118640.0,0.04017673]
[1759388506300,1.36262636,118650.0,118640.0,0.01699673]
[1759388506498,0.60214636,118650.0,118640.0,0.01699673]
[1759388506799,1.36254636,118650.0,118640.0,0.04017673]
[1759388507201,1.36254636,118650.0,118640.0,0.01699673]
[1759388507394,1.36254636,118650.0,118640.0,0.04017673]
[1759388507900,1.36254636,118650.0,118640.0,0.01699673]
[1759388508096,0.60214636,118650.0,118640.0,0.01699673]
[1759388508297,1.36254636,118650.0,118640.0,0.01699673]
[1759388508496,0.34319123,118650.0,118640.0,0.12268993]
[1759388508701,0.96759123,118650.0,118640.0,0.12268993]
[1759388508903,0.96759123,118650.0,118640.0,0.03844673]
[1759388509407,0.34319123,118650.0,118640.0,0.03844673]
[1759388509701,0.8445961,118650.0,118640.0,0.03844673]
[1759388509902,1.10355123,118650.0,118640.0,0.03844673]
[1759388510606,0.8445961,118650.0,118640.0,0.03844673]
[1759388510900,1.10355123,118650.0,118640.0,0.03844673]
[1759388511101,1.10371123,118650.0,118640.0,0.03844673]
[1759388512805,1.36266636,118650.0,118640.0,0.03844673]
[1759388514202,1.10371123,118650.0,118640.0,0.03844673]
[1759388522506,0.34319123,118650.0,118640.0,0.03844673]
[1759388522707,1.10347123,118650.0,118640.0,0.03844673]
[1759388530426,0.8445161,118650.0,118640.0,0.03844673]
[1759388530618,1.10347123,118650.0,118640.0,0.03844673]
[1759388536733,0.8445161,118650.0,118640.0,0.03844673]
[1759388537030,1.10347123,118650.0,118640.0,0.03844673]
[1759388538543,1.10347123,118650.0,118640.0,0.01699673]
[1759388539031,1.10347123,118650.0,118640.0,0.03919673]
[1759388545930,1.36242636,118650.0,118640.0,0.01699673]
[1759388550638,1.36242636,118650.0,118640.0,0.03893673]
[1759388551637,0.8445161,118650.0,118640.0,0.03893673]
[1759388551838,1.36242636,118650.0,118640.0,0.03893673]
[1759388554639,1.10347123,118650.0,118640.0,0.03893673]
[1759388554939,1.10347123,118650.0,118640.0,0.01699673]
[1759388558138,1.36242636,118650.0,118640.0,0.01699673]
[1759388558541,1.10347123,118650.0,118640.0,0.01699673]
[1759388559142,1.10347123,118650.0,118640.0,0.03893673]
[1759388559444,0.8445161,118650.0,118640.0,0.03893673]
[1759388559645,1.10347123,118650.0,118640.0,0.03893673]
[1759388561141,0.34319123,118650.0,118640.0,0.03893673]
[1759388561339,0.0842361,118650.0,118640.0,0.03893673]
[1759388561642,0.98239123,118650.0,118640.0,0.12318003]
[1759388561844,0.98239123,118650.0,118640.0,0.03893673]
[1759388566247,0.34319123,118650.0,118640.0,0.03893673]
[1759388566450,1.10335123,118650.0,118640.0,0.03893673]
[1759388568248,1.10328118,118650.0,118640.0,0.03893673]
[1759388569850,0.8443961,118650.0,118640.0,0.03893673]
[1759388570049,1.10328118,118650.0,118640.0,0.12318003]
[1759388573348,0.8443961,118650.0,118640.0,0.12318003]
[1759388573552,1.10328118,118650.0,118640.0,0.12318003]
[1759388580952,1.10328118,118650.0,118640.0,0.38206511]
[1759388581156,1.10328118,118650.0,118640.0,0.12318003]
[1759388581652,1.36216626,118650.0,118640.0,0.01699673]
[1759388585257,0.8443961,118650.0,118640.0,0.01699673]
[1759388585457,1.36216626,118650.0,118640.0,0.01699673]
[1759388585951,1.10328118,118650.0,118640.0,0.01699673]
[1759388586264,0.34312118,118650.0,118640.0,0.03960673]
[1759388586555,1.10324118,118650.0,118640.0,0.03960673]
[1759388587357,0.8443561,118650.0,118640.0,0.03960673]
[1759388587556,1.10324118,118650.0,118640.0,0.03960673]
[1759388589856,0.8443561,118650.0,118640.0,0.03960673]
[1759388590051,1.10324118,118650.0,118640.0,0.03960673]
[1759388590354,0.34312118,118650.0,118640.0,0.12385003]
[1759388590559,0.09647242,118660.0,118650.0,0.1197962]
[1759388590854,0.01224332,118660.0,118650.0,0.46822972]
[1759388591058,0.76016,118660.0,118650.0,0.46822972]
[1759388591357,0.34311308,118670.0,118660.0,0.03556]
[1759388591558,0.844388,118670.0,118660.0,0.29444508]
[1759388591759,0.844468,118670.0,118660.0,0.37867418]
[1759388592458,0.851468,118670.0,118660.0,0.37867418]
[1759388593160,0.86274415,118670.0,118660.0,0.37867418]
[1759388593360,0.85574415,118670.0,118660.0,0.1237891]
[1759388593556,0.85574415,118670.0,118660.0,0.38267418]
[1759388593756,0.85574415,118670.0,118660.0,0.37867418]
[1759388593963,0.85574415,118670.0,118660.0,0.37967418]
[1759388595661,0.15122302,118680.0,118670.0,0.1197819]
[1759388595860,0.8443391,118680.0,118670.0,0.37866698]
[1759388596062,0.8443391,118680.0,118670.0,0.47365055]
[1759388596365,0.76012,118680.0,118670.0,0.21476547]
[1759388596556,0.77135757,118680.0,118670.0,0.47365055]
[1759388597064,0.85557237,118680.0,118670.0,0.47365055]
[1759388597253,0.85757237,118680.0,118670.0,0.21476547]
[1759388597459,0.85757237,118680.0,118670.0,0.47365055]
[1759388598365,0.85557237,118680.0,118670.0,0.47465055]
[1759388598667,0.92353958,118680.0,118670.0,0.47465055]
[1759388601369,0.92353958,118680.0,118670.0,0.87465055]
[1759388601767,0.83932478,118680.0,118670.0,0.87465055]
[1759388605378,0.92353958,118680.0,118670.0,0.87465055]
[1759388606783,1.18242466,118680.0,118670.0,0.87465055]
[1759388607782,0.92353958,118680.0,118670.0,0.87465055]
[1759388610388,0.83932478,118680.0,118670.0,0.87465055]
[1759388610888,0.0921456,118690.0,118680.0,0.1202149]
[1759388611079,0.8521856,118690.0,118680.0,0.37909998]
[1759388612087,0.8541856,118690.0,118680.0,0.37909998]
[1759388612681,1.11107068,118690.0,118680.0,0.37909998]
[1759388612889,1.11607068,118690.0,118680.0,0.1202149]
[1759388613788,0.86773636,118690.0,118680.0,0.1202149]
[1759388613987,1.12658144,118690.0,118680.0,0.37909998]
[1759388618091,0.86769636,118690.0,118680.0,0.37909998]
[1759388618293,1.12658144,118690.0,118680.0,0.37909998]
[1759388620092,0.86769636,118690.0,118680.0,0.37909998]
[1759388620294,1.12658144,118690.0,118680.0,0.37909998]
[1759388623100,0.10769636,118690.0,118680.0,0.37909998]
[1759388623294,1.01074144,118690.0,118680.0,0.37909998]
[1759388625701,1.01074144,118690.0,118680.0,0.1202149]
[1759388626000,1.01074144,118690.0,118680.0,0.37909998]
[1759388628702,0.75185636,118690.0,118680.0,0.37909998]
[1759388629000,1.01074144,118690.0,118680.0,0.37909998]
[1759388630202,0.75185636,118690.0,118680.0,0.1202149]
[1759388636705,0.74392296,118690.0,118680.0,0.1202149]
[1759388638096,0.74392296,118690.0,118680.0,0.036]
[1759388640407,0.74392296,118690.0,118680.0,0.1202149]
[1759388649315,0.85960296,118690.0,118680.0,0.37890546]
[1759388649615,0.85960296,118690.0,118680.0,0.1202149]
[1759388666937,0.85960296,118690.0,118680.0,0.01329]
[1759388667333,0.85960296,118690.0,118680.0,0.03637]
[1759388667633,1.11829352,118690.0,118680.0,0.03637]
[1759388668133,0.85960296,118690.0,118680.0,0.03637]
[1759388674337,0.85960296,118690.0,118680.0,0.1205849]
[1759388674540,0.85960296,118690.0,118680.0,0.03637]
[1759388675441,1.11829352,118690.0,118680.0,0.03637]
[1759388681242,1.11829352,118690.0,118680.0,0.01329]
[1759388681741,1.11829352,118690.0,118680.0,0.03637]
[1759388683635,0.0842149,118680.0,118670.0,0.01295]
[1759388683839,0.34290546,118680.0,118670.0,0.097172]
[1759388684041,0.0842149,118680.0,118670.0,0.120252]
[1759388684343,0.28217181,118690.0,118680.0,0.03652]
[1759388684344,0.36638561,118690.0,118680.0,0.03652]
[1759388684545,0.87962561,118690.0,118680.0,0.03652]
[1759388684944,0.87462561,118690.0,118680.0,0.03652]
[1759388685746,0.87962561,118690.0,118680.0,0.03652]
[1759388686543,0.87662561,118690.0,118680.0,0.03652]
[1759388688847,0.85656456,118690.0,118680.0,0.1207348]
[1759388689046,0.85656456,118690.0,118680.0,0.1378345]
[1759388690251,0.85656456,118690.0,118680.0,0.39653032]
[1759388692551,0.35546038,118690.0,118680.0,0.39653032]
[1759388692759,1.11526038,118690.0,118680.0,0.39653032]
[1759388693154,0.85656456,118690.0,118680.0,0.39653032]
[1759388693452,0.01255076,118690.0,118680.0,1.05522614]
[1759388693746,0.0842038,118700.0,118680.0,1.05522614]
[1759388693747,0.40981049,118720.0,118710.0,0.03623]
[1759388694056,0.91119467,118720.0,118710.0,0.03623]
[1759388694242,1.16989049,118720.0,118710.0,0.03623]
[1759388694449,1.42858631,118720.0,118710.0,0.03623]
[1759388694753,1.16989049,118720.0,118710.0,0.03623]
[1759388694956,1.43158631,118720.0,118710.0,0.03623]
[1759388695252,0.91419467,118720.0,118710.0,0.03623]
[1759388695456,1.43158631,118720.0,118710.0,0.03623]
[1759388696252,0.91419467,118720.0,118710.0,0.03623]
[1759388696445,1.43158631,118720.0,118710.0,0.03623]
[1759388697256,1.44143782,118720.0,118710.0,0.03623]
[1759388700550,1.44143782,118720.0,118710.0,0.01343]
[1759388700752,1.44143782,118720.0,118710.0,0.03623]
[1759388702150,1.44143782,118720.0,118710.0,0.01343]
[1759388702352,0.68135782,118720.0,118710.0,0.01343]
[1759388702552,1.44167782,118720.0,118710.0,0.03623]
[1759388705762,0.68135782,118720.0,118710.0,0.03623]
[1759388705945,1.44155782,118720.0,118710.0,0.03623]
[1759388711456,1.44155782,118720.0,118710.0,0.01343]
[1759388721166,1.44127782,118720.0,118710.0,0.01343]
[1759388725172,0.60158524,118710.0,118700.0,0.01343]
[1759388726063,0.34288942,118710.0,118700.0,0.01343]
[1759388726267,1.10296942,118710.0,118700.0,0.01343]
[1759388726470,1.10296942,118710.0,118700.0,0.01643]
[1759388726872,1.10296942,118710.0,118700.0,0.01343]
[1759388727173,1.10296942,118710.0,118700.0,0.01443]
[1759388729071,0.34288942,118710.0,118700.0,0.01443]
[1759388729272,0.34288942,118710.0,118700.0,0.03614]
[1759388729471,1.10292942,118710.0,118700.0,0.03614]
[1759388731078,0.34288942,118710.0,118700.0,0.03614]
[1759388731277,1.10292942,118710.0,118700.0,0.03614]
[1759388731878,0.34288942,118710.0,118700.0,0.03614]
[1759388732177,1.10292942,118710.0,118700.0,0.03614]
[1759388732376,0.34288942,118710.0,118700.0,0.03614]
[1759388732578,1.10288942,118710.0,118700.0,0.03614]
[1759388733278,0.34288942,118710.0,118700.0,0.03614]
[1759388733469,1.10288942,118710.0,118700.0,0.03614]
[1759388733669,0.34288942,118710.0,118700.0,0.03614]
[1759388733869,1.10288942,118710.0,118700.0,0.03614]
[1759388734472,0.34288942,118710.0,118700.0,0.03614]
[1759388734773,1.10288942,118710.0,118700.0,0.03614]
[1759388739384,0.8441936,118710.0,118700.0,0.03614]
[1759388739587,1.10288942,118710.0,118700.0,0.03614]
[1759388740987,1.10280942,118710.0,118700.0,0.03614]
[1759388742481,1.10276942,118710.0,118700.0,0.03614]
[1759388747691,0.0841936,118710.0,118700.0,0.03614]
[1759388747886,0.34288942,118710.0,118700.0,0.29483582]
[1759388748084,1.10284942,118710.0,118700.0,0.29483582]
[1759388748284,1.10284942,118710.0,118700.0,0.03614]
[1759388752191,1.10280899,118710.0,118700.0,0.03614]
[1759388755001,1.36146438,118710.0,118700.0,0.001]
[1759388755294,1.76146438,118710.0,118700.0,0.001]
[1759388756999,1.76146438,118710.0,118700.0,1e-07]
[1759388757302,0.0842077,118690.0,118680.0,0.0134]
[1759388757498,1.10310309,118690.0,118680.0,0.0134]
[1759388758299,1.10410309,118690.0,118680.0,0.0134]
[1759388758500,1.10910309,118690.0,118680.0,0.0134]
[1759388759399,0.34886309,118690.0,118680.0,0.0134]
[1759388759605,1.10918309,118690.0,118680.0,0.03651]
[1759388760903,1.10918309,118690.0,118680.0,0.0134]
[1759388769412,1.10918309,118690.0,118680.0,0.03651]
[1759388771314,1.10918309,118690.0,118680.0,0.0134]
[1759388788219,1.10918309,118690.0,118670.0,0.02997466]
[1759388788417,0.34287019,118680.0,118670.0,0.01324]
[1759388788616,0.34287019,118680.0,118670.0,0.03515]
[1759388789817,0.34287019,118680.0,118670.0,0.03615]
[1759388790616,0.084222,118670.0,118660.0,0.01323]
[1759388790819,0.34287739,118670.0,118660.0,0.03514]
[1759388791111,1.10331739,118670.0,118660.0,0.03514]
[1759388791922,1.10331739,118670.0,118660.0,0.03614]
[1759388792123,1.10331739,118670.0,118660.0,0.03514]
[1759388792825,1.11292149,118670.0,118660.0,0.03514]
[1759388793026,1.11292149,118670.0,118660.0,0.03914]
[1759388795929,0.084229,118660.0,118650.0,0.01323]
[1759388796231,0.0842361,118650.0,118640.0,0.01321673]
[1759388796430,1.36254688,118650.0,118640.0,0.01321673]
[1759388797524,0.0842432,118640.0,118630.0,0.05238235]
[1759388797720,0.34289859,118640.0,118630.0,0.05238235]
[1759388798332,0.34297981,118640.0,118630.0,0.05238235]
[1759388798833,0.34297981,118640.0,118630.0,0.05738235]
[1759388799532,0.34297981,118640.0,118630.0,0.05238235]
[1759388799729,0.34597981,118640.0,118630.0,0.05238235]
[1759388799928,0.41065997,118640.0,118630.0,0.05438235]
[1759388800130,1.17169997,118640.0,118630.0,0.05438235]
[1759388800529,1.17169997,118640.0,118630.0,0.05238235]
[1759388800728,1.17569997,118640.0,118630.0,0.05238235]
[1759388801028,1.17569997,118640.0,118630.0,0.03505]
[1759388801535,0.41465997,118640.0,118630.0,0.03505]
[1759388801721,1.17569997,118640.0,118630.0,0.03505]
[1759388802327,0.41465997,118640.0,118630.0,0.03505]
[1759388802534,1.17569997,118640.0,118630.0,0.03505]
[1759388814238,1.43500246,118640.0,118630.0,0.03505]
[1759388817738,0.67396246,118640.0,118630.0,0.03505]
[1759388817938,1.43480246,118640.0,118630.0,0.03505]
[1759388819245,0.67396246,118640.0,118630.0,0.03505]
[1759388819441,1.43476246,118640.0,118630.0,0.03505]
[1759388821039,1.43476246,118640.0,118630.0,0.01314]
[1759388821439,0.0842504,118630.0,118620.0,0.05310391]
[1759388821736,0.34322934,118630.0,118620.0,0.05310391]
[1759388822045,0.60220828,118630.0,118620.0,0.03050391]
[1759388822543,0.60220828,118630.0,118620.0,0.03250391]
[1759388822744,0.60320828,118630.0,118620.0,0.03250391]
[1759388824446,0.60320828,118630.0,118620.0,0.01514]
[1759388824941,0.60320828,118630.0,118620.0,0.03774]
[1759388825241,1.36396828,118630.0,118620.0,0.03774]
[1759388825947,0.60320828,118630.0,118620.0,0.03774]
[1759388826148,1.10498934,118630.0,118620.0,0.03774]
[1759388829250,0.34422934,118630.0,118620.0,0.03774]
[1759388829647,1.10494934,118630.0,118620.0,0.03774]
[1759388830345,0.34422934,118630.0,118620.0,0.03774]
[1759388830549,1.10494934,118630.0,118620.0,0.03774]
[1759388832453,0.0852504,118630.0,118620.0,0.03774]
[1759388832750,0.79906934,118630.0,118620.0,0.03774]
[1759388833052,0.34422934,118630.0,118620.0,0.03774]
[1759388833445,1.10486934,118630.0,118620.0,0.03774]
[1759388835048,1.36384828,118630.0,118620.0,0.03774]
[1759388842860,0.0852504,118630.0,118620.0,0.03774]
[1759388843052,1.36372828,118630.0,118620.0,0.03774]
[1759388855965,1.36372828,118630.0,118620.0,0.01514]
[1759388856366,1.36372828,118630.0,118620.0,0.002]
[1759388856570,1.76372828,118630.0,118620.0,0.002]
[1759388856768,1.78679751,118630.0,118620.0,0.002]
[1759388857167,1.76372828,118630.0,118620.0,0.002]
[1759388858256,0.0842645,118610.0,118600.0,0.05195092]
[1759388858456,1.08994557,118610.0,118600.0,0.03522]
[1759388858657,1.34892451,118610.0,118600.0,0.03522]
[1759388859063,1.34892451,118610.0,118600.0,0.01314]
[1759388859464,1.34892451,118610.0,118600.0,0.02514]
[1759388859769,1.35834879,118610.0,118600.0,0.02514]
[1759388860573,1.35834879,118610.0,118600.0,0.012]
[1759388861468,1.75834879,118610.0,118600.0,0.012]
[1759388861969,1.35834879,118610.0,118600.0,0.012]
[1759388862169,1.37787184,118610.0,118600.0,0.012]
[1759388862870,0.61747184,118610.0,118600.0,0.012]
[1759388863369,1.37795184,118610.0,118600.0,0.02514]
[1759388866674,0.61747184,118610.0,118600.0,0.02514]
[1759388866876,1.37795184,118610.0,118600.0,0.02514]
[1759388868377,0.61747184,118610.0,118600.0,0.02514]
[1759388868567,1.37795184,118610.0,118600.0,0.02514]
[1759388869474,1.35842879,118610.0,118600.0,0.02514]
[1759388872675,1.35846879,118610.0,118600.0,0.0472]
[1759388872977,1.09948985,118610.0,118600.0,0.0472]
[1759388873278,1.35846879,118610.0,118600.0,0.0472]
[1759388876278,1.0996251,118610.0,118600.0,0.0472]
[1759388878381,1.0996251,118610.0,118600.0,0.02514]
[1759388878875,1.0996251,118610.0,118600.0,0.012]
[1759388879072,1.09970632,118610.0,118600.0,0.012]
[1759388879675,0.84059213,118610.0,118600.0,0.04699]
[1759388879876,1.09970632,118610.0,118600.0,0.04699]
[1759388880078,1.09970632,118610.0,118600.0,0.02493]
[1759388888782,1.09970632,118610.0,118600.0,0.012]
[1759388891089,1.12278077,118610.0,118600.0,0.012]
[1759388905413,1.09970632,118610.0,118600.0,0.012]
[1759388907907,1.12277982,118610.0,118600.0,0.012]
[1759388910315,1.1227803,118610.0,118600.0,0.012]
[1759388916318,1.1227803,118610.0,118600.0,0.02512]
[1759388920819,1.1227803,118610.0,118600.0,0.012]
[1759388924224,0.3622603,118610.0,118600.0,0.03319]
[1759388924525,0.3622603,118610.0,118600.0,0.96157711]
[1759388924526,8.122e-05,118610.0,118600.0,0.96157711]
[1759388924716,0.8447407,118620.0,118610.0,0.03431]
[1759388924919,1.10385489,118620.0,118610.0,0.03431]
[1759388926326,1.10385489,118620.0,118610.0,0.03531]
[1759388926825,1.10385489,118620.0,118610.0,0.03431]
[1759388927027,1.10385489,118620.0,118610.0,0.03831]
[1759388927325,1.11318744,118620.0,118610.0,0.03831]
[1759388929624,0.09359325,118620.0,118610.0,0.03831]
[1759388929823,0.09359325,118620.0,118610.0,0.5225735]
[1759388930033,0.08347861,118620.0,118610.0,0.87062448]
[1759388930223,0.08347861,118620.0,118610.0,0.94627433]
[1759388931028,0.08347861,118620.0,118610.0,0.87062448]
[1759388932731,0.07414606,118620.0,118610.0,0.87062448]
[1759388933328,0.0842536,118630.0,118620.0,0.0842553]
[1759388933536,0.8451336,118630.0,118620.0,0.1201553]
[1759388934336,0.85441629,118630.0,118620.0,0.0359]
[1759388934637,0.85441629,118630.0,118620.0,0.0369]
[1759388935636,0.85637629,118630.0,118620.0,0.29501419]
[1759388935830,0.85637629,118630.0,118620.0,0.0359]
[1759388937031,0.09553629,118630.0,118620.0,0.1201565]
[1759388937339,0.32679435,118640.0,118630.0,0.0359]
[1759388937340,0.69436666,118640.0,118630.0,0.0359]
[1759388937635,0.69436666,118640.0,118630.0,0.1201494]
[1759388938135,0.15192666,118640.0,118630.0,0.1201494]
[1759388938337,0.91280666,118640.0,118630.0,0.37905718]
[1759388938936,0.91780666,118640.0,118630.0,0.37905718]
[1759388939538,0.91280666,118640.0,118630.0,0.37905718]
[1759388939739,0.91380666,118640.0,118630.0,0.37905718]
[1759388939937,0.07757597,118640.0,118630.0,0.37905718]
[1759388940433,0.001,118640.0,118630.0,1.13551034]
[1759388940633,0.0842238,118670.0,118660.0,0.01305]
[1759388940838,0.18752094,118670.0,118660.0,0.29480778]
[1759388941044,0.10329714,118670.0,118660.0,0.63794336]
[1759388941232,0.0855131,118680.0,118670.0,0.120121]
[1759388941433,0.169727,118680.0,118670.0,0.37902878]
[1759388941635,0.169727,118680.0,118670.0,0.29480778]
[1759388942035,0.43776654,118680.0,118670.0,0.0359]
[1759388942238,0.43776654,118680.0,118670.0,0.29480778]
[1759388942639,0.17985876,118680.0,118670.0,0.29480778]
[1759388943337,0.17985876,118680.0,118670.0,0.29580778]
[1759388943540,0.17885876,118680.0,118670.0,0.29880778]
[1759388943742,0.01972284,118680.0,118670.0,0.38302878]
[1759388944039,0.01972284,118680.0,118670.0,0.61916683]
[1759388944240,0.01972284,118680.0,118670.0,0.87807461]
[1759388944430,0.01972284,118680.0,118670.0,1.13698239]
[1759388944634,0.0842026,118700.0,118690.0,0.0359]
[1759388944833,0.0842026,118700.0,118690.0,0.29480778]
[1759388945033,0.09314749,118700.0,118690.0,0.29480778]
[1759388945531,0.09314749,118700.0,118690.0,0.37901478]
[1759388945740,0.09714749,118700.0,118690.0,0.37901478]
[1759388946040,0.10514749,118700.0,118690.0,0.37901478]
[1759388946441,0.17325816,118700.0,118690.0,0.37901478]
[1759388947143,0.17325816,118700.0,118690.0,0.29480778]
[1759388947542,0.17325816,118700.0,118690.0,0.47509786]
[1759388947746,0.012,118700.0,118690.0,0.87509786]
[1759388949237,0.012,118700.0,118690.0,1.63637786]
[1759388950146,0.012,118700.0,118690.0,1.7206274]
[1759388950344,0.012,118700.0,118690.0,1.97953518]
[1759388950541,0.0841896,118720.0,118710.0,0.01305]
[1759388950741,0.34309738,118720.0,118710.0,0.29480778]
[1759388950943,0.40908888,118720.0,118710.0,0.29480778]
[1759388951248,0.1592169,118720.0,118710.0,0.37900058]
[1759388951751,0.1612169,118720.0,118710.0,0.38100058]
[1759388955952,0.161213,118720.0,118710.0,0.38100058]
[1759388959352,0.161213,118720.0,118710.0,0.1220928]
[1759388959553,0.161213,118720.0,118710.0,0.38100058]
[1759388963048,0.42012078,118720.0,118710.0,0.38100058]
[1759388963554,0.161213,118720.0,118710.0,0.38100058]
[1759388967458,0.161213,118720.0,118710.0,0.1220928]
[1759388972256,0.18388533,118720.0,118710.0,0.1220928]
[1759388972457,0.18388533,118720.0,118710.0,0.1200928]
[1759388972657,0.161213,118720.0,118710.0,0.1200928]
[1759388972860,0.159213,118720.0,118710.0,0.1210928]
[1759388973364,0.18189556,118720.0,118710.0,0.1210928]
[1759388974262,0.17178962,118720.0,118710.0,0.1210928]
[1759388978165,0.17178962,118720.0,118710.0,0.38000058]
[1759388979066,0.4306974,118720.0,118710.0,0.38000058]
[1759388985067,0.17178962,118720.0,118710.0,0.38000058]
[1759388985266,0.4306974,118720.0,118710.0,0.38000058]
[1759388986274,0.17178962,118720.0,118710.0,0.1210928]
[1759388986966,0.4306974,118720.0,118710.0,0.0369]
[1759388987173,0.6794991,118720.0,118710.0,0.0369]
[1759388989477,0.42059132,118720.0,118710.0,0.0369]
[1759388990276,0.39790876,118720.0,118710.0,0.0369]
[1759388990774,0.42050394,118720.0,118710.0,0.0369]
[1759388991371,0.39790876,118720.0,118710.0,0.0369]
[1759388993477,0.13900098,118720.0,118710.0,0.0369]
[1759388993673,0.39790876,118720.0,118710.0,0.0369]
[1759388998367,0.13900098,118720.0,118710.0,0.0369]
[1759388998580,0.39760112,118720.0,118710.0,0.001]
[1759388998778,1.03240796,118720.0,118710.0,0.001]
[1759388999276,0.77380782,118720.0,118710.0,0.001]
[1759388999678,0.79639579,118720.0,118710.0,0.001]
[1759389000476,0.53779565,118720.0,118710.0,0.001]
[1759389000682,0.79639579,118720.0,118710.0,0.001]
[1759389001283,0.77380782,118720.0,118710.0,0.001]
[1759389002477,0.77380782,118720.0,118710.0,1.42716168]
[1759389004677,1.27532768,118720.0,118710.0,1.42716168]
[1759389004882,1.53392782,118720.0,118710.0,1.42716168]
[1759389006490,0.77380782,118720.0,118710.0,1.42716168]
[1759389006789,1.53388782,118720.0,118710.0,1.42716168]
[1759389007290,0.11520768,118720.0,118710.0,1.44012168]
[1759389007492,1.13424782,118720.0,118710.0,1.52431398]
[1759389008783,1.13424782,118720.0,118710.0,1.44012168]
[1759389011092,0.87564768,118720.0,118710.0,1.52431318]
[1759389011391,0.37380782,118720.0,118710.0,1.52431318]
[1759389011584,0.11520768,118720.0,118710.0,1.52431318]
[1759389011785,0.87564768,118720.0,118710.0,1.52431318]
[1759389013591,0.11520768,118720.0,118710.0,1.78291332]
[1759389013790,0.87560768,118720.0,118710.0,1.78291332]
[1759389013986,0.87560768,118720.0,118710.0,1.52431318]
[1759389016495,1.13420782,118720.0,118710.0,1.52431318]
[1759389018092,1.13420782,118720.0,118710.0,1.44012168]
[1759389030698,0.37380782,118720.0,118710.0,1.44012168]
[1759389030900,1.13388782,118720.0,118710.0,1.44012168]
[1759389034000,0.37380782,118720.0,118710.0,1.52431348]
[1759389034202,0.36012226,118720.0,118710.0,1.52431348]
[1759389034399,1.12012226,118720.0,118710.0,1.52431348]
[1759389034901,0.86152212,118720.0,118710.0,1.52431348]
[1759389036097,0.86152212,118720.0,118710.0,1.78291362]
[1759389037001,0.86152212,118720.0,118710.0,1.52431348]
[1759389037396,0.86152212,118720.0,118710.0,1.44012168]
[1759389037608,1.12012226,118720.0,118710.0,1.44012168]
[1759389038102,1.12012226,118720.0,118710.0,1.52431308]
[1759389038904,0.86152212,118720.0,118710.0,1.52431308]
[1759389039108,1.12012226,118720.0,118710.0,1.52431308]
[1759389040404,1.12012226,118720.0,118710.0,1.44012168]
[1759389044508,1.10643665,118720.0,118710.0,1.44012168]
[1759389048411,1.17388941,118720.0,118710.0,1.44012168]
[1759389051709,0.91528927,118720.0,118710.0,1.44012168]
[1759389051905,1.17388941,118720.0,118710.0,1.44012168]
[1759389055320,0.91528927,118720.0,118710.0,1.44012168]
[1759389055521,1.17388941,118720.0,118710.0,1.44012168]
[1759389056821,1.15009721,118720.0,118710.0,1.44012168]
[1759389059826,1.16607806,118720.0,118710.0,1.44012168]
[1759389060319,1.42468552,118720.0,118710.0,1.44012168]
[1759389063327,2.08328932,118720.0,118710.0,1.44012168]
[1759389063824,2.10599481,118720.0,118710.0,1.44012168]
[1759389064925,2.10599481,118720.0,118710.0,0.01296]
[1759389065331,0.0841918,118710.0,118700.0,0.03458]
[1759389065629,0.3427956,118710.0,118700.0,0.03458]
[1759389067331,0.3427956,118710.0,118700.0,0.03858]
[1759389068137,0.3427956,118710.0,118700.0,0.05515407]
[1759389069235,1.1027556,118710.0,118700.0,0.05515407]
[1759389069533,0.3427956,118710.0,118700.0,0.05515407]
[1759389069833,1.1027556,118710.0,118700.0,0.05515407]
[1759389082145,1.3613594,118710.0,118700.0,0.05515407]
[1759389082832,0.6013994,118710.0,118700.0,0.05515407]
[1759389083034,1.3613594,118710.0,118700.0,0.05515407]
[1759389083232,1.1027556,118710.0,118700.0,0.05515407]
[1759389083939,0.3427956,118710.0,118700.0,0.05515407]
[1759389084143,1.1027556,118710.0,118700.0,0.05515407]
[1759389090542,1.1027556,118710.0,118700.0,0.03858]
[1759389090744,1.1027556,118710.0,118700.0,0.004]
[1759389090745,1.3613594,118710.0,118700.0,0.004]
[1759389090939,2.0199632,118710.0,118680.0,0.01305]
[1759389091146,0.6014135,118690.0,118680.0,0.11103985]
[1759389091343,1.3613735,118690.0,118680.0,0.03539]
[1759389091742,1.1027697,118690.0,118680.0,0.03539]
[1759389092143,1.33757532,118690.0,118680.0,0.03539]
[1759389092445,1.33757532,118690.0,118680.0,0.02705]
[1759389093040,1.33757532,118690.0,118680.0,0.02305]
[1759389093948,1.33757532,118690.0,118680.0,0.01405]
[1759389094648,1.33757532,118690.0,118680.0,0.01305]
[1759389094847,1.33757532,118690.0,118680.0,0.01605]
[1759389095249,1.33757532,118690.0,118680.0,0.003]
[1759389096156,1.33761532,118690.0,118680.0,0.01623]
[1759389096852,1.33761532,118690.0,118680.0,0.03857]
[1759389097150,1.07901152,118690.0,118680.0,0.03857]
[1759389098350,0.31901152,118690.0,118680.0,0.03857]
[1759389098550,1.07905152,118690.0,118680.0,0.03857]
[1759389100652,1.07905152,118690.0,118680.0,0.01623]
[1759389101548,1.07905152,118690.0,118680.0,0.03857]
[1759389101749,0.06040772,118690.0,118680.0,0.03857]
[1759389101952,1.07905152,118690.0,118680.0,0.2971738]
[1759389102743,0.06040772,118690.0,118680.0,0.2971738]
[1759389102945,0.82753152,118690.0,118680.0,0.3813868]
[1759389105455,0.31901152,118690.0,118680.0,0.3813868]
[1759389105650,1.07909152,118690.0,118680.0,0.3813868]
[1759389106953,1.07909152,118690.0,118680.0,0.122783]